fUSD/lending_fUSD_20241209
["ID","MTS","AMOUNT","RATE_DAILY","PERIOD"]
[344704614,1733727076416,-79044.0,9.96e-05,2]
[344704615,1733727076425,-150.0,9.995e-05,2]
[344704616,1733727076435,-150.0,9.995e-05,2]
[344704617,1733727076444,-150.0,9.995e-05,2]
[344704618,1733727076453,-82171.50627761,9.995e-05,2]
[344704619,1733727076462,-8847.68466373,9.995e-05,2]
[344704620,1733727076472,-3869.51530103,9.995e-05,2]
[344704621,1733727076481,-775.72,9.996e-05,2]
[344704622,1733727076490,-212.88,9.996e-05,2]
[344704623,1733727076500,-643.8,9.996e-05,2]
[344704624,1733727076510,-1271.95,9.996e-05,2]
[344704625,1733727076521,-500.0,9.996e-05,2]
[344704626,1733727076530,-1481.03,9.996e-05,2]
[344704627,1733727076539,-520.24,9.996e-05,2]
[344704628,1733727076549,-709.13,9.996e-05,2]
[344704629,1733727076558,-500.0,9.996e-05,2]
[344704630,1733727076568,-5206.07,9.996e-05,2]
[344704631,1733727076578,-500.0,9.996e-05,2]
[344704632,1733727076587,-615.53,9.996e-05,2]
[344704633,1733727076597,-500.0,9.996e-05,2]
[344704634,1733727076606,-500.0,9.996e-05,2]
[344704635,1733727076615,-665.23,9.996e-05,2]
[344704636,1733727076625,-3902.42,9.996e-05,2]
[344704637,1733727076634,-2229.46,9.996e-05,2]
[344704638,1733727076646,-500.0,9.996e-05,2]
[344704639,1733727076655,-583.72,9.996e-05,2]
[344704640,1733727076665,-500.0,9.997e-05,2]
[344704641,1733727076675,-500.0,9.997e-05,2]
[344704642,1733727076684,-500.0,9.997e-05,2]
[344704643,1733727076694,-556.22,9.997e-05,2]
[344704644,1733727076703,-500.0,9.997e-05,2]
[344704645,1733727076713,-588.12,9.997e-05,2]
[344704646,1733727076723,-614.72,9.997e-05,2]
[344704647,1733727076733,-845.06,9.997e-05,2]
[344704648,1733727076742,-701.97,9.997e-05,2]
[344704649,1733727076751,-1014.68,9.997e-05,2]
[344704650,1733727076760,-700.42,9.997e-05,2]
[344704651,1733727076771,-500.0,9.997e-05,2]
[344704652,1733727076780,-500.0,9.997e-05,2]
[344704653,1733727076789,-500.0,9.997e-05,2]
[344704654,1733727076798,-500.0,9.997e-05,2]
[344704655,1733727076807,-1542.93,9.997e-05,2]
[344704656,1733727076816,-500.0,9.997e-05,2]
[344704657,1733727076825,-500.0,9.997e-05,2]
[344704658,1733727076835,-500.0,9.997e-05,2]
[344704659,1733727076845,-500.0,9.997e-05,2]
[344704660,1733727076856,-985.5,9.997e-05,2]
[344704661,1733727076865,-500.0,9.997e-05,2]
[344704662,1733727076874,-654.83,9.997e-05,2]
[344704663,1733727076884,-500.0,9.997e-05,2]
[344704664,1733727076894,-500.0,9.997e-05,2]
[344704665,1733727076903,-772.19,9.997e-05,2]
[344704666,1733727076913,-500.0,9.997e-05,2]
[344704667,1733727076924,-500.0,9.997e-05,2]
[344704668,1733727076934,-373.31,9.997e-05,2]
[344704669,1733727076944,-931.86,9.997e-05,2]
[344704670,1733727076953,-500.0,9.997e-05,2]
[344704671,1733727076963,-500.0,9.997e-05,2]
[344704672,1733727076973,-500.0,9.997e-05,2]
[344704673,1733727076982,-500.0,9.997e-05,2]
[344704674,1733727076991,-576.23,9.997e-05,2]
[344704675,1733727077001,-500.0,9.997e-05,2]
[344704676,1733727077010,-500.0,9.997e-05,2]
[344704677,1733727077023,-747.24,9.997e-05,2]
[344704678,1733727077032,-500.0,9.997e-05,2]
[344704679,1733727077042,-1615.85,9.997e-05,2]
[344704680,1733727077051,-566.08,9.997e-05,2]
[344704681,1733727077061,-500.0,9.997e-05,2]
[344704682,1733727077070,-627.44,9.997e-05,2]
[344704683,1733727077079,-160.03,9.997e-05,2]
[344704684,1733727077088,-607.67,9.997e-05,2]
[344704685,1733727077097,-938.32,9.997e-05,2]
[344704686,1733727077107,-500.4,9.997e-05,2]
[344704687,1733727077116,-500.0,9.997e-05,2]
[344704688,1733727077126,-579.47,9.997e-05,2]
[344704689,1733727077135,-7764.25,9.997e-05,2]
[344704690,1733727077144,-1320.76,9.997e-05,2]
[344704691,1733727077154,-980.21,9.997e-05,2]
[344704692,1733727077163,-1680.89,9.997e-05,2]
[344704693,1733727077172,-2748.0,9.997e-05,2]
[344704694,1733727077182,-1670.14,9.997e-05,2]
[344704695,1733727077192,-596.93,9.997e-05,2]
[344704696,1733727077202,-670.49,9.997e-05,2]
[344704697,1733727077212,-1327.67,9.997e-05,2]
[344704698,1733727077221,-500.0,9.997e-05,2]
[344704699,1733727077231,-963.86,9.997e-05,2]
[344704700,1733727077241,-2421.76,9.997e-05,2]
[344704701,1733727077250,-799.04,9.997e-05,2]
[344704702,1733727077260,-500.0,9.997e-05,2]
[344704703,1733727077272,-708.62,9.997e-05,2]
[344704704,1733727077281,-500.0,9.997e-05,2]
[344704705,1733727077291,-500.0,9.997e-05,2]
[344704706,1733727077301,-500.0,9.997e-05,2]
[344704707,1733727077311,-1074.36,9.997e-05,2]
[344704708,1733727077320,-514.47,9.997e-05,2]
[344704709,1733727077330,-500.0,9.997e-05,2]
[344704710,1733727077339,-668.19,9.997e-05,2]
[344704711,1733727077348,-500.0,9.997e-05,2]
[344704712,1733727077358,-1083.33,9.997e-05,2]
[344704713,1733727077368,-726.78,9.997e-05,2]
[344704714,1733727077378,-506.09,9.997e-05,2]
[344704715,1733727077388,-500.0,9.997e-05,2]
[344704716,1733727077398,-538.49321135,9.997e-05,2]
[344704717,1733727077407,-500.0,9.997e-05,2]
[344704718,1733727077416,-500.0,9.997e-05,2]
[344704719,1733727077426,-5528.93,9.997e-05,2]
[344704720,1733727077435,-1809.27,9.997e-05,2]
[344704721,1733727077445,-724.73,9.997e-05,2]
[344704722,1733727077455,-775.72,9.997e-05,2]
[344704723,1733727077464,-775.72,9.997e-05,2]
[344704724,1733727077474,-567.55,9.997e-05,2]
[344704725,1733727077483,-500.58,9.997e-05,2]
[344704726,1733727077493,-643.8,9.997e-05,2]
[344704727,1733727077503,-643.8,9.997e-05,2]
[344704728,1733727077512,-576.49,9.997e-05,2]
[344704729,1733727077523,-1271.95,9.997e-05,2]
[344704730,1733727077533,-1271.95,9.997e-05,2]
[344704731,1733727077543,-463.49423583,9.997e-05,2]
[344704732,1733727077552,-635.28,9.997e-05,2]
[344704733,1733727077562,-818.95,9.997e-05,2]
[344704734,1733727077573,-1557.71,9.997e-05,2]
[344704735,1733727077583,-500.0,9.997e-05,2]
[344704736,1733727077593,-500.0,9.997e-05,2]
[344704737,1733727077603,-500.0,9.997e-05,2]
[344704738,1733727077612,-1481.03,9.997e-05,2]
[344704739,1733727077622,-1481.03,9.997e-05,2]
[344704740,1733727077631,-500.0,9.997e-05,2]
[344704741,1733727077640,-4920.36,9.997e-05,2]
[344704742,1733727077650,-500.0,9.997e-05,2]
[344704743,1733727077659,-8626.79,9.997e-05,2]
[344704744,1733727077669,-709.13,9.997e-05,2]
[344704745,1733727077679,-709.13,9.997e-05,2]
[344704746,1733727077688,-500.0,9.997e-05,2]
[344704747,1733727077698,-500.0,9.997e-05,2]
[344704748,1733727077708,-505.12,9.997e-05,2]
[344704749,1733727077717,-5206.07,9.997e-05,2]
[344704750,1733727077727,-5206.07,9.997e-05,2]
[344704751,1733727077736,-500.0,9.997e-05,2]
[344704752,1733727077746,-500.0,9.997e-05,2]
[344704753,1733727077755,-3870.05,9.997e-05,2]
[344704754,1733727077764,-615.53,9.997e-05,2]
[344704755,1733727077775,-615.53,9.997e-05,2]
[344704756,1733727077784,-615.74,9.997e-05,2]
[344704757,1733727077794,-500.0,9.997e-05,2]
[344704758,1733727077804,-338.32,9.997e-05,2]
[344704759,1733727077813,-1065.35,9.997e-05,2]
[344704760,1733727077823,-500.0,9.997e-05,2]
[344704761,1733727077832,-1635.93,9.997e-05,2]
[344704762,1733727077841,-500.0,9.997e-05,2]
[344704763,1733727077855,-500.0,9.997e-05,2]
[344704764,1733727077864,-665.23,9.997e-05,2]
[344704765,1733727077874,-665.23,9.997e-05,2]
[344704766,1733727077883,-2348.93,9.997e-05,2]
[344704767,1733727077892,-500.0,9.997e-05,2]
[344704768,1733727077902,-726.47,9.997e-05,2]
[344704769,1733727077912,-3039.13,9.997e-05,2]
[344704770,1733727077922,-3902.42,9.997e-05,2]
[344704771,1733727077932,-3902.42,9.997e-05,2]
[344704772,1733727077941,-2229.46,9.997e-05,2]
[344704773,1733727077951,-2229.46,9.997e-05,2]
[344704774,1733727077960,-545.73,9.997e-05,2]
[344704775,1733727077971,-22344.12,9.997e-05,2]
[344704776,1733727077980,-500.0,9.997e-05,2]
[344704777,1733727077990,-3198.49,9.997e-05,2]
[344704778,1733727077999,-500.0,9.997e-05,2]
[344704779,1733727078010,-500.0,9.997e-05,2]
[344704780,1733727078020,-500.0,9.997e-05,2]
[344704781,1733727078030,-500.0,9.997e-05,2]
[344704782,1733727078040,-500.0,9.997e-05,2]
[344704783,1733727078051,-500.0,9.997e-05,2]
[344704784,1733727078061,-2021.5,9.997e-05,2]
[344704785,1733727078071,-14745.82,9.997e-05,2]
[344704786,1733727078081,-500.0,9.997e-05,2]
[344704787,1733727078091,-9054.83,9.997e-05,2]
[344704788,1733727078101,-1343.94,9.997e-05,2]
[344704789,1733727078110,-583.72,9.997e-05,2]
[344704790,1733727078120,-583.72,9.997e-05,2]
[344704791,1733727078129,-462.35,9.998e-05,2]
[344704792,1733727078139,-236.22326352,9.998e-05,2]
[344704793,1733727078149,-500.0,9.998e-05,2]
[344704794,1733727078159,-500.0,9.998e-05,2]
[344704795,1733727078169,-556.22,9.998e-05,2]
[344704796,1733727078179,-478.49992972,9.998e-05,2]
[344704797,1733727078189,-588.12,9.998e-05,2]
[344704798,1733727078199,-614.72,9.998e-05,2]
[344704799,1733727078209,-845.06,9.998e-05,2]
[344704800,1733727078219,-701.97,9.998e-05,2]
[344704801,1733727078229,-1014.68,9.998e-05,2]
[344704802,1733727078239,-700.42,9.998e-05,2]
[344704803,1733727078248,-500.0,9.998e-05,2]
[344704804,1733727078258,-500.0,9.998e-05,2]
[344704805,1733727078268,-500.0,9.998e-05,2]
[344704806,1733727078278,-500.0,9.998e-05,2]
[344704807,1733727078287,-500.0,9.998e-05,2]
[344704808,1733727078297,-336.77,9.998e-05,2]
[344704809,1733727078307,-1542.93,9.998e-05,2]
[344704810,1733727078317,-500.0,9.998e-05,2]
[344704811,1733727078326,-478.34,9.998e-05,2]
[344704812,1733727078336,-500.0,9.998e-05,2]
[344704813,1733727078345,-500.0,9.998e-05,2]
[344704814,1733727078355,-500.0,9.998e-05,2]
[344704815,1733727078364,-500.0,9.998e-05,2]
[344704816,1733727078375,-985.5,9.998e-05,2]
[344704817,1733727078385,-500.0,9.998e-05,2]
[344704818,1733727078395,-654.83,9.998e-05,2]
[344704819,1733727078405,-500.0,9.998e-05,2]
[344704820,1733727078415,-315.99,9.998e-05,2]
[344704821,1733727078424,-500.0,9.998e-05,2]
[344704822,1733727078434,-772.19,9.998e-05,2]
[344704823,1733727078443,-500.0,9.998e-05,2]
[344704824,1733727078453,-772.19,9.998e-05,2]
[344704825,1733727078463,-772.19,9.998e-05,2]
[344704826,1733727078472,-500.0,9.998e-05,2]
[344704827,1733727078482,-500.0,9.998e-05,2]
[344704828,1733727078491,-500.0,9.998e-05,2]
[344704829,1733727078501,-931.86,9.998e-05,2]
[344704830,1733727078511,-500.0,9.998e-05,2]
[344704831,1733727078523,-500.0,9.998e-05,2]
[344704832,1733727078533,-500.0,9.998e-05,2]
[344704833,1733727078542,-500.0,9.998e-05,2]
[344704834,1733727078552,-500.0,9.998e-05,2]
[344704835,1733727078562,-500.0,9.998e-05,2]
[344704836,1733727078572,-500.0,9.998e-05,2]
[344704837,1733727078583,-500.0,9.998e-05,2]
[344704838,1733727078592,-500.0,9.998e-05,2]
[344704839,1733727078601,-500.0,9.998e-05,2]
[344704840,1733727078611,-500.0,9.998e-05,2]
[344704841,1733727078620,-500.0,9.998e-05,2]
[344704842,1733727078629,-576.23,9.998e-05,2]
[344704843,1733727078639,-500.0,9.998e-05,2]
[344704844,1733727078648,-186.74,9.998e-05,2]
[344704845,1733727078658,-500.0,9.998e-05,2]
[344704846,1733727078667,-500.0,9.998e-05,2]
[344704847,1733727078677,-500.0,9.998e-05,2]
[344704848,1733727078687,-747.24,9.998e-05,2]
[344704849,1733727078696,-500.0,9.998e-05,2]
[344704850,1733727078706,-500.0,9.998e-05,2]
[344704851,1733727078715,-500.0,9.998e-05,2]
[344704852,1733727078724,-1615.85,9.998e-05,2]
[344704853,1733727078733,-1615.85,9.998e-05,2]
[344704854,1733727078743,-1615.85,9.998e-05,2]
[344704855,1733727078752,-566.08,9.998e-05,2]
[344704856,1733727078762,-500.0,9.998e-05,2]
[344704857,1733727078773,-500.0,9.998e-05,2]
[344704858,1733727078783,-500.0,9.998e-05,2]
[344704859,1733727078792,-627.44,9.998e-05,2]
[344704860,1733727078801,-627.44,9.998e-05,2]
[344704861,1733727078811,-627.44,9.998e-05,2]
[344704862,1733727078820,-607.67,9.998e-05,2]
[344704863,1733727078830,-938.32,9.998e-05,2]
[344704864,1733727078839,-500.4,9.998e-05,2]
[344704865,1733727078854,-500.4,9.998e-05,2]
[344704866,1733727078864,-500.4,9.998e-05,2]
[344704867,1733727078874,-500.4,9.998e-05,2]
[344704868,1733727078883,-500.0,9.998e-05,2]
[344704869,1733727078894,-500.0,9.998e-05,2]
[344704870,1733727078904,-536.74075012,9.998e-05,2]
[344704871,1733727078913,-579.47,9.998e-05,2]
[344704872,1733727078924,-579.47,9.998e-05,2]
[344704873,1733727078935,-579.47,9.998e-05,2]
[344704874,1733727078944,-7764.25,9.998e-05,2]
[344704875,1733727078954,-7764.25,9.998e-05,2]
[344704876,1733727078964,-7764.25,9.998e-05,2]
[344704877,1733727078974,-1320.76,9.998e-05,2]
[344704878,1733727078983,-1320.76,9.998e-05,2]
[344704879,1733727078993,-1320.76,9.998e-05,2]
[344704880,1733727079003,-1320.76,9.998e-05,2]
[344704881,1733727079012,-980.21,9.998e-05,2]
[344704882,1733727079024,-980.21,9.998e-05,2]
[344704883,1733727079034,-980.21,9.998e-05,2]
[344704884,1733727079045,-1680.89,9.998e-05,2]
[344704885,1733727079056,-1680.89,9.998e-05,2]
[344704886,1733727079066,-2748.0,9.998e-05,2]
[344704887,1733727079077,-1680.89,9.998e-05,2]
[344704888,1733727079087,-2748.0,9.998e-05,2]
[344704889,1733727079103,-1670.14,9.998e-05,2]
[344704890,1733727079114,-2748.0,9.998e-05,2]
[344704891,1733727079124,-1670.14,9.998e-05,2]
[344704892,1733727079135,-2748.0,9.998e-05,2]
[344704893,1733727079146,-1670.14,9.998e-05,2]
[344704894,1733727079156,-596.93,9.998e-05,2]
[344704895,1733727079170,-596.93,9.998e-05,2]
[344704896,1733727079181,-596.93,9.998e-05,2]
[344704897,1733727079191,-670.49,9.998e-05,2]
[344704898,1733727079201,-670.49,9.998e-05,2]
[344704899,1733727079210,-670.49,9.998e-05,2]
[344704900,1733727079220,-670.49,9.998e-05,2]
[344704901,1733727079230,-1327.67,9.998e-05,2]
[344704902,1733727079240,-1327.67,9.998e-05,2]
[344704903,1733727079250,-1327.67,9.998e-05,2]
[344704904,1733727079260,-500.0,9.998e-05,2]
[344704905,1733727079271,-500.0,9.998e-05,2]
[344704906,1733727079281,-500.0,9.998e-05,2]
[344704907,1733727079292,-963.86,9.998e-05,2]
[344704908,1733727079302,-963.86,9.998e-05,2]
[344704909,1733727079313,-2421.76,9.998e-05,2]
[344704910,1733727079323,-963.86,9.998e-05,2]
[344704911,1733727079334,-2421.76,9.998e-05,2]
[344704912,1733727079344,-2421.76,9.998e-05,2]
[344704913,1733727079354,-799.04,9.998e-05,2]
[344704914,1733727079364,-799.04,9.998e-05,2]
[344704915,1733727079374,-799.04,9.998e-05,2]
[344704916,1733727079384,-799.04,9.998e-05,2]
[344704917,1733727079395,-500.0,9.998e-05,2]
[344704918,1733727079404,-500.0,9.998e-05,2]
[344704919,1733727079415,-392.93,9.998e-05,2]
[344704920,1733727079424,-708.62,9.998e-05,2]
[344704921,1733727079434,-708.62,9.998e-05,2]
[344704922,1733727079443,-708.62,9.998e-05,2]
[344704923,1733727079453,-500.0,9.998e-05,2]
[344704924,1733727079462,-500.0,9.998e-05,2]
[344704925,1733727079472,-500.0,9.998e-05,2]
[344704926,1733727079481,-500.0,9.998e-05,2]
[344704927,1733727079491,-500.0,9.998e-05,2]
[344704928,1733727079500,-500.0,9.998e-05,2]
[344704929,1733727079510,-500.0,9.998e-05,2]
[344704930,1733727079521,-500.0,9.998e-05,2]
[344704931,1733727079531,-1074.36,9.998e-05,2]
[344704932,1733727079541,-1074.36,9.998e-05,2]
[344704933,1733727079550,-1074.36,9.998e-05,2]
[344704934,1733727079560,-1074.36,9.998e-05,2]
[344704935,1733727079569,-514.47,9.998e-05,2]
[344704936,1733727079579,-500.0,9.998e-05,2]
[344704937,1733727079589,-500.0,9.998e-05,2]
[344704938,1733727079598,-500.0,9.998e-05,2]
[344704939,1733727079608,-668.19,9.998e-05,2]
[344704940,1733727079617,-500.0,9.998e-05,2]
[344704941,1733727079626,-500.0,9.998e-05,2]
[344704942,1733727079635,-500.0,9.998e-05,2]
[344704943,1733727079644,-1083.33,9.998e-05,2]
[344704944,1733727079654,-1083.33,9.998e-05,2]
[344704945,1733727079663,-1083.33,9.998e-05,2]
[344704946,1733727079673,-726.78,9.998e-05,2]
[344704947,1733727079683,-726.78,9.998e-05,2]
[344704948,1733727079692,-726.78,9.998e-05,2]
[344704949,1733727079702,-726.78,9.998e-05,2]
[344704950,1733727079711,-506.09,9.998e-05,2]
[344704951,1733727079721,-506.09,9.998e-05,2]
[344704952,1733727079731,-506.09,9.998e-05,2]
[344704953,1733727079740,-500.0,9.998e-05,2]
[344704954,1733727079750,-238.67688136,9.998e-05,2]
[344704955,1733727079759,-592.43146357,9.998e-05,2]
[344704956,1733727079770,-500.0,9.998e-05,2]
[344704957,1733727079780,-500.0,9.998e-05,2]
[344704958,1733727079790,-500.0,9.998e-05,2]
[344704959,1733727079801,-500.0,9.998e-05,2]
[344704960,1733727079810,-5528.93,9.998e-05,2]
[344704961,1733727079820,-5528.93,9.998e-05,2]
[344704962,1733727079830,-5528.93,9.998e-05,2]
[344704963,1733727079839,-1809.27,9.998e-05,2]
[344704964,1733727079853,-724.73,9.998e-05,2]
[344704965,1733727079863,-1809.27,9.998e-05,2]
[344704966,1733727079873,-724.73,9.998e-05,2]
[344704967,1733727079883,-1809.27,9.998e-05,2]
[344704968,1733727079892,-724.73,9.998e-05,2]
[344704969,1733727079902,-1809.27,9.998e-05,2]
[344704970,1733727079913,-775.72,9.998e-05,2]
[344704971,1733727079923,-775.72,9.998e-05,2]
[344704972,1733727079933,-775.72,9.998e-05,2]
[344704973,1733727079943,-775.72,9.998e-05,2]
[344704974,1733727079953,-567.55,9.998e-05,2]
[344704975,1733727079963,-567.55,9.998e-05,2]
[344704976,1733727079974,-567.55,9.998e-05,2]
[344704977,1733727079984,-500.58,9.998e-05,2]
[344704978,1733727079993,-500.58,9.998e-05,2]
[344704979,1733727080004,-500.58,9.998e-05,2]
[344704980,1733727080014,-500.58,9.998e-05,2]
[344704981,1733727080026,-643.8,9.998e-05,2]
[344704982,1733727080035,-643.8,9.998e-05,2]
[344704983,1733727080045,-643.8,9.998e-05,2]
[344704984,1733727080055,-643.8,9.998e-05,2]
[344704985,1733727080065,-576.49,9.998e-05,2]
[344704986,1733727080075,-576.49,9.998e-05,2]
[344704987,1733727080084,-576.49,9.998e-05,2]
[344704988,1733727080095,-1271.95,9.998e-05,2]
[344704989,1733727080105,-1271.95,9.998e-05,2]
[344704990,1733727080116,-1271.95,9.998e-05,2]
[344704991,1733727080126,-1271.95,9.998e-05,2]
[344704992,1733727080137,-635.28,9.998e-05,2]
[344704993,1733727080147,-635.28,9.998e-05,2]
[344704994,1733727080157,-818.95,9.998e-05,2]
[344704995,1733727080168,-635.28,9.998e-05,2]
[344704996,1733727080178,-818.95,9.998e-05,2]
[344704997,1733727080188,-635.28,9.998e-05,2]
[344704998,1733727080198,-818.95,9.998e-05,2]
[344704999,1733727080209,-1557.71,9.998e-05,2]
[344705000,1733727080219,-1557.71,9.998e-05,2]
[344705001,1733727080229,-1557.71,9.998e-05,2]
[344705002,1733727080239,-1557.71,9.998e-05,2]
[344705003,1733727080248,-500.0,9.998e-05,2]
[344705004,1733727080258,-346.15,9.998e-05,2]
[344705005,1733727080268,-500.0,9.998e-05,2]
[344705006,1733727080279,-500.0,9.998e-05,2]
[344705007,1733727080289,-500.0,9.998e-05,2]
[344705008,1733727080299,-500.0,9.998e-05,2]
[344705009,1733727080309,-1481.03,9.998e-05,2]
[344705010,1733727080320,-500.0,9.998e-05,2]
[344705011,1733727080330,-1481.03,9.998e-05,2]
[344705012,1733727080341,-500.0,9.998e-05,2]
[344705013,1733727080351,-500.0,9.998e-05,2]
[344705014,1733727080361,-1481.03,9.998e-05,2]
[344705015,1733727080372,-602.27,9.998e-05,2]
[344705016,1733727080382,-1481.03,9.998e-05,2]
[344705017,1733727080392,-500.0,9.998e-05,2]
[344705018,1733727080403,-4920.36,9.998e-05,2]
[344705019,1733727080413,-500.0,9.998e-05,2]
[344705020,1733727080423,-4920.36,9.998e-05,2]
[344705021,1733727080433,-500.0,9.998e-05,2]
[344705022,1733727080443,-4920.36,9.998e-05,2]
[344705023,1733727080452,-4920.36,9.998e-05,2]
[344705024,1733727080463,-500.0,9.998e-05,2]
[344705025,1733727080472,-8626.79,9.998e-05,2]
[344705026,1733727080483,-626.66630235,9.998e-05,2]
[344705027,1733727080493,-8626.79,9.998e-05,2]
[344705028,1733727080503,-8626.79,9.998e-05,2]
[344705029,1733727080513,-709.13,9.998e-05,2]
[344705030,1733727080529,-709.13,9.998e-05,2]
[344705031,1733727080540,-709.13,9.998e-05,2]
[344705032,1733727080550,-709.13,9.998e-05,2]
[344705033,1733727080560,-500.0,9.998e-05,2]
[344705034,1733727080571,-500.0,9.998e-05,2]
[344705035,1733727080582,-500.0,9.998e-05,2]
[344705036,1733727080593,-500.0,9.998e-05,2]
[344705037,1733727080604,-500.0,9.998e-05,2]
[344705038,1733727080615,-456.88,9.998e-05,2]
[344705039,1733727080625,-505.12,9.998e-05,2]
[344705040,1733727080636,-505.12,9.998e-05,2]
[344705041,1733727080646,-505.12,9.998e-05,2]
[344705042,1733727080656,-5206.07,9.998e-05,2]
[344705043,1733727080667,-5206.07,9.998e-05,2]
[344705044,1733727080678,-5206.07,9.998e-05,2]
[344705045,1733727080688,-5206.07,9.998e-05,2]
[344705046,1733727080698,-5206.07,9.998e-05,2]
[344705047,1733727080708,-5206.07,9.998e-05,2]
[344705048,1733727080719,-5206.07,9.998e-05,2]
[344705049,1733727080729,-500.0,9.998e-05,2]
[344705050,1733727080740,-500.0,9.998e-05,2]
[344705051,1733727080751,-5206.07,9.998e-05,2]
[344705052,1733727080761,-500.0,9.998e-05,2]
[344705053,1733727080772,-5206.2169821,9.998e-05,2]
[344705054,1733727080782,-500.0,9.998e-05,2]
[344705055,1733727080793,-3870.05,9.998e-05,2]
[344705056,1733727080803,-3870.05,9.998e-05,2]
[344705057,1733727080813,-3870.05,9.998e-05,2]
[344705058,1733727080826,-615.53,9.998e-05,2]
[344705059,1733727080837,-615.53,9.998e-05,2]
[344705060,1733727080850,-615.53,9.998e-05,2]
[344705061,1733727080862,-615.53,9.998e-05,2]
[344705062,1733727080873,-615.53,9.998e-05,2]
[344705063,1733727080883,-615.74,9.998e-05,2]
[344705064,1733727080895,-615.53,9.998e-05,2]
[344705065,1733727080906,-615.74,9.998e-05,2]
[344705066,1733727080917,-615.53,9.998e-05,2]
[344705067,1733727080929,-615.74,9.998e-05,2]
[344705068,1733727080939,-615.53,9.998e-05,2]
[344705069,1733727080949,-615.72,9.998e-05,2]
[344705070,1733727080960,-1065.35,9.998e-05,2]
[344705071,1733727080970,-1065.35,9.998e-05,2]
[344705072,1733727080981,-1065.35,9.998e-05,2]
[344705073,1733727080991,-500.0,9.998e-05,2]
[344705074,1733727081001,-500.0,9.998e-05,2]
[344705075,1733727081012,-500.0,9.998e-05,2]
[344705076,1733727081023,-500.0,9.998e-05,2]
[344705077,1733727081033,-1635.93,9.998e-05,2]
[344705078,1733727081044,-1635.93,9.998e-05,2]
[344705079,1733727081055,-1635.93,9.998e-05,2]
[344705080,1733727081066,-500.0,9.998e-05,2]
[344705081,1733727081077,-500.0,9.998e-05,2]
[344705082,1733727081088,-500.0,9.998e-05,2]
[344705083,1733727081098,-500.0,9.998e-05,2]
[344705084,1733727081108,-500.0,9.998e-05,2]
[344705085,1733727081118,-500.0,9.998e-05,2]
[344705086,1733727081128,-500.0,9.998e-05,2]
[344705087,1733727081139,-665.23,9.998e-05,2]
[344705088,1733727081149,-500.0,9.998e-05,2]
[344705089,1733727081159,-665.23,9.998e-05,2]
[344705090,1733727081168,-2348.93,9.998e-05,2]
[344705091,1733727081178,-665.23,9.998e-05,2]
[344705092,1733727081187,-185.59,9.998e-05,2]
[344705093,1733727081198,-2348.93,9.998e-05,2]
[344705094,1733727081207,-2348.93,9.998e-05,2]
[344705095,1733727081217,-665.23,9.998e-05,2]
[344705096,1733727081227,-2348.93,9.998e-05,2]
[344705097,1733727081238,-500.0,9.998e-05,2]
[344705098,1733727081247,-500.0,9.998e-05,2]
[344705099,1733727081257,-400.13368295,9.998e-05,2]
[344705100,1733727081267,-726.47,9.998e-05,2]
[344705101,1733727081278,-3039.13,9.998e-05,2]
[344705102,1733727081287,-3039.13,9.998e-05,2]
[344705103,1733727081297,-3039.13,9.998e-05,2]
[344705104,1733727081307,-3902.42,9.998e-05,2]
[344705105,1733727081317,-3902.42,9.998e-05,2]
[344705106,1733727081326,-3902.42,9.998e-05,2]
[344705107,1733727081336,-2229.46,9.998e-05,2]
[344705108,1733727081345,-2229.46,9.998e-05,2]
[344705109,1733727081354,-3902.42,9.998e-05,2]
[344705110,1733727081364,-2229.46,9.998e-05,2]
[344705111,1733727081373,-3902.42,9.998e-05,2]
[344705112,1733727081383,-2229.46,9.998e-05,2]
[344705113,1733727081392,-3902.42,9.998e-05,2]